Cogmind - Beta 14 @@@ ROGUE MODE // 2025.03.22 @ 10:30:26 // Winter2019/RPGLIKE Player: Lava Result: Destroyed by as-11396 with Assembled Maul Performance ------------- Evolutions (0) 0 Regions Visited (4) 800 Robots Destroyed (17) 85 Value Destroyed (285) 285 Prototype IDs (23) 460 Alien Tech Used (0) 0 Bonus (300) 300 TOTAL SCORE: 1930 Bonus ------- Aligned with FarCom 300 Cogmind --------- Core Integrity 0/600 Matter 288/300 Energy 250/250 System Corruption 0% Temperature Cool (6) Movement Treading (160) Location -9/Mines Parts ------- > --- POWER (1) -------- Ion Engine > --- PROPULSION (2) --- Light Treads Light Treads > --- UTILITY (2) ------ Signal Interpreter Trap Reconfigurator > --- WEAPON (2) ------- Light Cannon Light Cannon > --- INVENTORY (3) ---- Sensor Array ECM Suite Light Cannon Peak State ------------ > --- POWER ------------ Ion Engine > --- PROPULSION ------- Light Treads Light Treads > --- UTILITY ---------- Signal Interpreter Trap Reconfigurator > --- WEAPON ----------- Light Cannon Light Cannon > --- INVENTORY -------- Sensor Array ECM Suite Light Cannon [Rating: 15] Favorites ----------- Power Ion Engine Engine Ion Engine Propulsion Light Treads Treads Light Treads Utility Signal Interpreter Device Sensor Array Processor Signal Interpreter Weapon Light Cannon Ballistic Gun Light Assault Rifle Ballistic Cannon Light Cannon Build | -11 -10 -10 -10 -9 ------- Run | Yrd Mat Min Exi Min Slots Evolved 3 | 2 . 1 . . Power . | . . . . . Propulsion 1 | 1 . . . . Utility 1 | 1 . . . . Weapon 1 | . . 1 . . Parts Attached 12 | 4 6 1 1 . Power 1 | 1 . . . . Engine 1 | 1 . . . . Core . | . . . . . Reactor . | . . . . . Propulsion 3 | 2 1 . . . Treads 3 | 2 1 . . . Leg . | . . . . . Wheel . | . . . . . Hover . | . . . . . Flight . | . . . . . Utility 4 | . 3 . 1 . Device 3 | . 2 . 1 . Storage . | . . . . . Processor 1 | . 1 . . . Hackware . | . . . . . Protection . | . . . . . Artifact . | . . . . . Weapon 4 | 1 2 1 . . Energy Gun . | . . . . . Energy Cannon . | . . . . . Ballistic Gun 1 | 1 . . . . Ballistic Cannon 3 | . 2 1 . . Launcher . | . . . . . Special Weapon . | . . . . . Impact Weapon . | . . . . . Slashing Weapon . | . . . . . Piercing Weapon . | . . . . . Special Melee Weapon . | . . . . . Unidentified Prototypes . | . . . . . Parts Lost . | . . . . . Power . | . . . . . Propulsion . | . . . . . Utility . | . . . . . Weapon . | . . . . . Highest Loss Streak . | . . . . . To Critical Strikes . | . . . . . Average Slot Usage (%) 94 | . 91 100 100 100 Engine 15 | . 16 14 14 14 Treads 31 | . 33 28 28 28 Device 12 | . 12 14 14 14 Processor 12 | . 12 14 14 14 Ballistic Gun 1 | . 2 . . . Ballistic Cannon 17 | . 13 28 28 28 Peak Build Rating 15 | 4 6 7 15 15 Average Rating 7 | 3 5 6 10 15 On Entrance 6 | . 4 6 7 15 Naked Turns . | . . . . . Heaviest Build 12 | 6 9 12 12 12 Greatest Support 40 | 40 40 40 40 40 Greatest Overweight (x) . | . . . . . Average Overweight (x) . | . . . . . Largest Inventory Capacity 3 | 3 3 3 3 3 Average Capacity 3 | 3 3 3 3 3 Most Carried 3 | 3 3 3 3 3 Average Carried 2 | 1 2 2 2 3 Final Capacity 3 | 3 3 3 3 3 Final Carried 3 | 2 3 2 3 3 Class Distribution -------------------- 93% | Mutant 6% | Skirmisher Dominant Class ---------------- Mutant | -10/Materials Mutant | -10/Mines Mutant | -10/Exiles Skirmisher | -9/Mines Resources | -11 -10 -10 -10 -9 ----------- Run | Yrd Mat Min Exi Min Matter Collected 573 | 219 231 85 . 38 Remotely . | . . . . . Salvage Created 197 | . 136 61 . . Parts 28 | . 26 2 . . Haulers Intercepted . | . . . . . Recyclers Shooed 2 | . 2 . . . Parts Field Recycled . | . . . . . Retrieved Matter . | . . . . . Parts Self-Destructed . | . . . . . Prevented . | . . . . . Kills | -11 -10 -10 -10 -9 ------- Run | Yrd Mat Min Exi Min Combat Hostiles Destroyed 13 | . 10 2 . 1 Melee 1 | . 1 . . . Guns 3 | . 3 . . . Cannons 9 | . 6 2 . 1 Classes Destroyed 5 | . 4 . . 1 Operator 2 | . 2 . . . Watcher 3 | . 3 . . . Swarmer 9 | . 9 . . . Grunt 3 | . 1 2 . . Assembled 1 | . . . . 1 Best Kill Streak 4 | . 4 2 . 1 Combat Bots Only 3 | . 3 2 . 1 Max Kills in Single Turn 1 | . 1 1 . 1 Gunslinging . | . . . . . Exploded . | . . . . . Melee 1 | . 1 . . . Uniques/NPCs Destroyed . | . . . . . Combat | -11 -10 -10 -10 -9 -------- Run | Yrd Mat Min Exi Min Hostile Shots Fired 92 | . 61 11 . 20 Missed 23 | . 14 4 . 5 Damage Taken 1015 | . 390 115 . 510 Core 827 | . 309 89 . 429 Absorbed by Shields . | . . . . . Redirected to Core 613 | . 239 89 . 285 Core Remaining (%) 100 | 100 . . . . Volleys Fired 72 | 1 60 6 . 5 Largest 2 | 1 1 2 . 2 Hottest 70 | 20 35 70 . 70 Shots Fired 83 | 1 60 12 . 10 Gun 18 | 1 17 . . . Cannon 65 | . 43 12 . 10 Launcher . | . . . . . Special . | . . . . . Kinetic 83 | 1 60 12 . 10 Thermal . | . . . . . Explosive . | . . . . . Electromagnetic . | . . . . . Robot Hit Streak 7 | . 7 5 . 3 Robot Miss Streak 7 | . 7 2 . 2 Penetration Max . | . . . . . Secondary Targets . | . . . . . Shots Hit Robots 40 | . 28 7 . 5 Core Hits 23 | . 18 2 . 3 Critical Kills . | . . . . . Critical Parts Destroyed . | . . . . . Critical Strikes 3 | . 2 1 . . Blast 3 | . 2 1 . . Melee Attacks . | . . . . . Impact . | . . . . . Slashing . | . . . . . Piercing . | . . . . . Sneak Attacks . | . . . . . Combat Hostiles . | . . . . . Follow-up Attacks . | . . . . . Damage Inflicted 650 | . 456 119 . 75 Guns 124 | . 124 . . . Cannons 509 | . 315 119 . 75 Explosions . | . . . . . Melee . | . . . . . Ramming 17 | . 17 . . . Kinetic 633 | . 439 119 . 75 Thermal . | . . . . . Explosive . | . . . . . Electromagnetic . | . . . . . Impact . | . . . . . Slashing . | . . . . . Piercing . | . . . . . Highest Corruption . | . . . . . Average Corruption . | . . . . . Corruption Purged . | . . . . . Corruption Blocked . | . . . . . Overload Shots . | . . . . . Overflow Damage 14 | . 14 . . . Projectiles 14 | . 14 . . . Explosions . | . . . . . Melee . | . . . . . Knockbacks 4 | . 1 . . 3 Impact . | . . . . . Kinetic 4 | . 1 . . 3 Secondary . | . . . . . Self-Inflicted Damage . | . . . . . Shots . | . . . . . Rammed 7 | . 7 . . . Targets Rammed 7 | . 7 . . . Kicked . | . . . . . Crushed . | . . . . . Highest Temperature 90 | . 6 90 . 27 Average Temperature 32 | . 6 49 . 11 Received Heat Transfer 87 | . 24 63 . . Siege Activations . | . . . . . Robots Corrupted . | . . . . . Combat Hostiles . | . . . . . Parts Fried . | . . . . . Impact Corruptions . | . . . . . Robots Melted . | . . . . . Combat Hostiles . | . . . . . Parts Melted . | . . . . . Heat Transferred . | . . . . . Parts Sabotaged . | . . . . . Parts Stolen . | . . . . . Parts Stripped . | . . . . . Power Chain Reactions . | . . . . . Alert | -11 -10 -10 -10 -9 ------- Run | Yrd Mat Min Exi Min Peak Influence 193 | . 193 65 . . Initial . | . . . . . Average 64 | . 74 51 . . Maximum Alert Level . | . . . . . Low Security (%) 100 | 100 100 100 . 100 Level 1 . | . . . . . Level 2 . | . . . . . Level 3 . | . . . . . Level 4 . | . . . . . Level 5 . | . . . . . High Security . | . . . . . Max Security . | . . . . . Squads Dispatched 1 | . 1 . . . Investigation . | . . . . . Extermination . | . . . . . Reinforcement 1 | . 1 . . . Assault . | . . . . . Garrison . | . . . . . Intercept . | . . . . . Searches Triggered . | . . . . . Construction Impeded . | . . . . . Haulers Reinforced . | . . . . . Active Scanning Responses . | . . . . . Cargo Convoy Interrupts . | . . . . . Stealth | -11 -10 -10 -10 -9 --------- Run | Yrd Mat Min Exi Min Distress Signals 1 | . 1 . . . Communications Jammed . | . . . . . Distress Signals . | . . . . . Times Spotted 39 | . 17 2 . 20 Peak Tracking Total 11 | . 3 2 . 11 Tactical Retreats 1 | . 1 . . . Traps | -11 -10 -10 -10 -9 ------- Run | Yrd Mat Min Exi Min Traps Triggered 1 | . 1 . . . Indirectly . | . . . . . Trap Hack Attempts . | . . . . . Triggered . | . . . . . Disarmed 1 | . 1 . . . Reprogrammed . | . . . . . Reused . | . . . . . Traps Extracted . | . . . . . Installed . | . . . . . Triggered . | . . . . . Machines | -11 -10 -10 -10 -9 ---------- Run | Yrd Mat Min Exi Min Machines Disabled . | . . . . . Max in Single Turn . | . . . . . Machines Repaired . | . . . . . Machines Dismantled . | . . . . . Machines Sabotaged . | . . . . . Overloaded Fab Kills . | . . . . . Hacking | -11 -10 -10 -10 -9 --------- Run | Yrd Mat Min Exi Min Machines Accessed 7 | . 6 . 1 . Terminals 6 | . 6 . . . Fabricators . | . . . . . Repair Stations . | . . . . . Recycling Units . | . . . . . Scanalyzers . | . . . . . Garrison Access . | . . . . . Total Hacks 26 | . 25 . 1 . Successful 11 | . 10 . 1 . Failed 15 | . 15 . . . Catastrophic . | . . . . . Database Lockouts . | . . . . . Manual 6 | . 5 . 1 . Terminals 25 | . 25 . . . Fabricators . | . . . . . Repair Stations . | . . . . . Recycling Units . | . . . . . Scanalyzers . | . . . . . Garrison Access . | . . . . . Terminal Hacks 11 | . 10 . 1 . Level Access Points 1 | . 1 . . . Emergency Access Points 1 | . 1 . . . Terminal Index 1 | . 1 . . . Locate Traps 1 | . 1 . . . Disarm Traps 1 | . 1 . . . Dispatch Records 1 | . 1 . . . Maintenance Status 1 | . 1 . . . Reinforcement Status 1 | . 1 . . . Recall Reinforcements 1 | . 1 . . . Hauler Manifests 1 | . 1 . . . Derelict Proto ID Bank 1 | . . . 1 . Fabricator Hacks . | . . . . . Repair Station Hacks . | . . . . . Recycling Unit Hacks . | . . . . . Scanalyzer . | . . . . . Garrison Access Hacks . | . . . . . Unauthorized Hacks . | . . . . . Terminals . | . . . . . Fabricators . | . . . . . Repair Stations . | . . . . . Recycling Units . | . . . . . Scanalyzers . | . . . . . Garrison Access . | . . . . . Data Cores Recovered 1 | . 1 . . . Used . | . . . . . Hacking Detections 5 | . 5 . . . Full Trace Events . | . . . . . Feedback Events . | . . . . . Feedback Blocked . | . . . . . Robot Schematics Acquired . | . . . . . Robots Built . | . . . . . Authchips . | . . . . . Time . | . . . . . Total Robot Build Rating . | . . . . . Part Schematics Acquired . | . . . . . Parts Built . | . . . . . Authchips . | . . . . . Time . | . . . . . Total Part Build Rating . | . . . . . Parts Repaired . | . . . . . Time . | . . . . . Parts Recycled . | . . . . . Recycled Matter . | . . . . . Retrieved Matter . | . . . . . Retrieved Components . | . . . . . Parts Scanalyzed . | . . . . . Part Schematics Acquired . | . . . . . Parts Damaged . | . . . . . Bothacking | -11 -10 -10 -10 -9 ------------ Run | Yrd Mat Min Exi Min Used RIF Installer . | . . . . . Robots Hacked . | . . . . . Non-combat . | . . . . . Combat . | . . . . . Robot Hacks Applied . | . . . . . Relay Couplers Released . | . . . . . Fabnet Peak Effective % . | . . . . . Robots Rewired . | . . . . . Allies Hacked . | . . . . . Hacks Repelled . | . . . . . Allies | -11 -10 -10 -10 -9 -------- Run | Yrd Mat Min Exi Min Total Allies . | . . . . . Largest Group . | . . . . . Highest-Rated Group . | . . . . . Highest-Rated Ally . | . . . . . Total Orders . | . . . . . Ally Attacks . | . . . . . Total Damage . | . . . . . Kills . | . . . . . Allies Corrupted . | . . . . . Allies Melted . | . . . . . Intel | -11 -10 -10 -10 -9 ------- Run | Yrd Mat Min Exi Min Robot Analysis Total . | . . . . . Derelict Logs Recovered 1 | . . . . 1 Drone Launches . | . . . . . Drone Recoveries . | . . . . . Exploration | -11 -10 -10 -10 -9 ------------- Run | Yrd Mat Min Exi Min Turns Passed 1778 | 65 1211 54 334 114 Spaces Moved 985 | 43 652 20 208 62 Core 13 | 13 . . . . Treads 972 | 30 652 20 208 62 Legs . | . . . . . Wheels . | . . . . . Hover . | . . . . . Flight . | . . . . . Fastest Speed 50 | 50 160 160 160 160 Average Speed 158 | 126 160 160 160 160 Slowest Speed 160 | 160 160 160 160 160 Overloaded Moves . | . . . . . Propulsion Burnouts . | . . . . . Robots Hopped . | . . . . . Cave-ins Triggered . | . . . . . Exploration Rate (%) 31 | 3 92 4 41 18 Regions Visited 4 Branch Regions 3 Pre-discovered Areas . | . . . . . Known Exits Taken 3 | . 1 1 1 . Unknown Exits Taken 1 | 1 . . . . Scrap Searched . | . . . . . Spaces Dug . | . . . . . Terrain Destroyed . | . . . . . Melee . | . . . . . Projectile . | . . . . . AOE . | . . . . . Terrain Rammed . | . . . . . Walls Destroyed . | . . . . . Machines Disabled . | . . . . . Actions | -11 -10 -10 -10 -9 --------- Run | Yrd Mat Min Exi Min Total 1117 | 52 759 30 209 67 Wait 19 | . 19 . . . Move 981 | 42 651 19 207 62 Hop . | . . . . . Pick Up 10 | 5 4 . 1 . Fast Attach 5 | 1 4 . . . Attach 4 | 3 . 1 . . Detach . | . . . . . Swap 3 | . 2 . 1 . Drop 4 | . 4 . . . Fire 72 | 1 60 6 . 5 Melee . | . . . . . Ram . | . . . . . Kick . | . . . . . Crush 7 | . 7 . . . Escape Stasis . | . . . . . Rewire . | . . . . . Trap . | . . . . . Miscellaneous 12 | . 8 4 . . Route ------- -11/Scrapyard -10/Materials (discovered 4 exits: *Mat x3 / *Min) -10/Mines -10/Exiles -9/Mines History --------- Turn | Location | Event 1 | -11/Scrapyard | Upgraded with Propulsion slot (x1) 1 | -11/Scrapyard | Upgraded with Utility slot (x1) 12 | -11/Scrapyard | Discovered new exit (range 16) 66 | -11/Scrapyard | Entered Materials 245 | -10/Materials | Discovered new exit (range 16) 306 | -10/Materials | Build established: Mutant 929 | -10/Materials | Identified exit to Materials 1058 | -10/Materials | Discovered new exit (range 9) 1276 | -10/Materials | Identified exit to Mines 1277 | -10/Materials | Entered Mines 1279 | -10/Mines | Reached level 2 1279 | -10/Mines | Upgraded with Weapon slot (x1) 1324 | -10/Mines | Deemed a non-threat by the Exiles lab entrance 1324 | -10/Mines | Discovered new exit (range 5) 1329 | -10/Mines | Identified exit to Exiles 1331 | -10/Mines | Entered Exiles 1375 | -10/Exiles | Met 8R-AWN 1397 | -10/Exiles | Met EX-HEX 1443 | -10/Exiles | Met EX-BIN 1461 | -10/Exiles | Aligned with FarCom system 1463 | -10/Exiles | Given EX-Vault access code 1504 | -10/Exiles | Opened EX-Vault 1511 | -10/Exiles | Found Trap Reconfigurator 1545 | -10/Exiles | Warned to stay clear of 0b10 Research branches 1648 | -10/Exiles | Discovered new exit (range 14) 1664 | -10/Exiles | Identified exit to Mines 1665 | -10/Exiles | Left Exiles lab with Trap Reconfigurator 1665 | -10/Exiles | Entered Mines 1731 | -9/Mines | Learned Materials stockpile data 1732 | -9/Mines | Assembled infested the area 1767 | -9/Mines | Core integrity fell below 50% 1775 | -9/Mines | Core integrity fell below 20% 1779 | -9/Mines | Destroyed by as-11396 with Assembled Maul Last Messages --------------- 01760_ as-94984 knocked back. 01760_ K-01 Serf collects debris. 01766_ as-94984 knocked back. 01766_ as-94984 destroyed. 01768_ C-30 ARC bursts open, deploying its payload. 01768_ D-53 Grenadier unfolds itself. 01770_ as-98188 destroyed. 01770_ R-06 Scavenger destroyed. 01772_ as-26389 destroyed. 01772_ as-08783 destroyed. 01772_ T-07 Excavator destroyed. 01772_ as-00247 destroyed. 01773_ Acquired 38 matter. 01774_ as-63898 destroyed. 01774_ as-03157 destroyed. 01774_ as-50619 destroyed. 01774_ as-39878 destroyed. 01776_ D-53 Grenadier destroyed. 01777_ The unstable cave ceiling collapses. 01777_ D-53 Grenadier destroyed. Map ----- +----------------------------------------------------+ | ???????????????##?????????????????? | | ???????????????# ?????????????????? | | ???????????????# ?????????????????? | | ???????????????# #????????????????? | | ???????????????# #????????????????? | | ???????????????# ##???????###?????? | | ??????????????? #??????# ###???? | | ???????????????# #???### ##??? | | ??############## #### #??? | | ??# #??? | | ??# #???? | | ??# ############ #????? | | ??# #?????????## ####??????? | | ### ###???????# ##?????????? | | # #??????## ##?????????? | | # """ #??????# ##????????? | | # """ #??????# #????????? | | # """ #??????# """ #????????? | | # #??????## """ #????????? | | # #???????#### """ #????????? | | # #??????????## ####?????? | | #######???????????# ## ## ###???? | | ??????????????????# ## ###?? | | ??????????????????# # ##? | | ??????????????????# #? | | ??????????????????#### @a #? | | ?????????????????????# #? | | ??????????????????? #? | | ????????????????# # #? | | ????????????? a aaa a a #? | | ?????????????### $a ##? | | ???????????????## | % #?? | | ????????????????# # ##?? | | ????????????????# ##### ###??? | | ????????????????# ?????## ####????? | | ???????????????? ???????# ????????? | | ???????????????#????????##????????? | | ??????????????????????????????????? | | ??????????????????????????????????? | | ??????????????????????????????????? | | ??????????????????????????????????? | | ??????????????????????????????????? | | ??????????????????????????????????? | | ??????????????????????????????????? | | ??????????????????????????????????? | | ??????????????????????????????????? | | ??????????????????????????????????? | | ??????????????????????????????????? | | ??????????????????????????????????? | | ??????????????????????????????????? | +----------------------------------------------------+ Best States ------------- Heat Dissipation 25 Energy Generation 10 Energy Capacity 250 Matter Stores 300 Matter Capacity 300 Sight Range 16 Robot Scan Range 24 Terrain Scan Density 10 Evasion (%) 50 Recoil Reduction 2 Item Schematics ----------------- None Robot Schematics ------------------ None Fabricated ------------ Nothing Alien Tech Used ----------------- None Achievements -------------- Fist Fight Challenges ------------ None RPGLIKE | -11 -10 -10 -10 -9 --------- Run | Yrd Mat Min Exi Min Levels Raised 1 | . . 1 . . XP Earned 5895 | 3000 1295 750 350 500 XP Spent 4400 | 2950 . 1450 . . Upgrades 13 | 7 . 6 . . Propulsion Slot 1 | 1 . . . . Utility Slot 1 | 1 . . . . Weapon Slot 1 | . . 1 . . Inventory Capacity 3 | 3 . . . . Sensor Range 5 | 1 . 4 . . Ranged Accuracy 2 | 1 . 1 . . Protomatter Created 95 | . 70 25 . . Integrity Restored 223 | . 148 75 . . Core 214 | . 139 75 . . Parts 9 | . 9 . . . Protomatter Decayed 20 | . 20 . . . Game ------ Seed TransdimensionalUtilityLegs Manual? 0 Play Time 00:12:51 Cumulative 28.4 hours Start 2025.03.22 @ 10:18:18 End 2025.03.22 @ 10:30:26 Sessions 1 Manual Loads 0 Difficulty Rogue Special Mode Winter2019/RPGLIKE Game No. 47 Rogue 47 Adventurer 0 Explorer 0 Win Type - Total 0 Types 0/0/0/0/0/0/0/0/0 Lore% 13 Gallery% 24 Achievement% 24 Wizard Run 0 Options --------- Layout 0 ASCII 0 Keyboard 0 Movement Mouse Keybinds 0 Fullscreen 1 Font 24/Smallcaps Map View 76x56 Zoom Use 0% Tactical HUD 1 Map Filters NONE Filters NONE Steam 1 RUN: 26c1b806-590e-4132-bafd-73d739701b11